bitfinex-derivatives/quotes_BNBF0:USTF0_20260114
["timestamp","ask_amount","ask_price","bid_price","bid_amount"]
[1768421019603,5.89390796,946.24,943.61,1.57668678]
[1768421019800,5.89390796,946.24,943.7,1.57668678]
[1768421020805,5.89390796,946.24,943.81,1.57668678]
[1768421021007,5.89390796,946.24,943.82,1.57668678]
[1768421021205,5.89390796,946.24,943.84,1.57668678]
[1768421021400,5.89390796,946.24,943.83,1.57668678]
[1768421026310,5.89390796,946.24,943.81,1.57668678]
[1768421027906,5.89390796,946.24,943.9,1.57668678]
[1768421029317,5.89390796,946.24,943.89,1.57668678]
[1768421031520,1.272,946.24,943.89,1.57668678]
[1768421032421,1.272,946.24,943.88,1.57668678]
[1768421032624,1.272,946.24,943.87,1.57668678]
[1768421032920,1.272,946.24,943.81,1.57668678]
[1768421033117,1.272,946.24,943.8,1.57668678]
[1768421034421,1.272,946.24,943.81,1.57668678]
[1768421038418,1.272,946.24,943.89,1.57668678]
[1768421038918,1.272,946.24,944.01,1.57668678]
[1768421039318,1.272,946.24,944.0,1.57668678]
[1768421039619,1.272,946.24,944.02,1.57668678]
[1768421041224,1.272,946.24,944.03,1.57668678]
[1768421041421,1.272,946.24,944.02,1.57668678]
[1768421041625,1.272,946.24,943.34,2.6278113]
[1768421041626,1.272,946.24,944.01,1.57668678]
[1768421041825,1.272,946.24,944.03,1.57668678]
[1768421042322,1.272,946.24,944.0,1.57668678]
[1768421042520,1.272,946.24,943.99,1.57668678]
[1768421043023,1.272,946.24,943.94,1.57668678]
[1768421043426,1.272,946.24,943.93,1.57668678]
[1768421045326,1.272,946.24,943.92,1.57668678]
[1768421047330,1.272,946.24,943.93,1.57668678]
[1768421047732,1.272,946.24,944.03,1.57668678]
[1768421047930,1.272,946.24,944.06,1.57668678]
[1768421048129,1.272,946.24,942.9,3.67893582]
[1768421048130,1.272,946.24,944.12,1.57668678]
[1768421048325,1.272,946.24,944.14,1.57668678]
[1768421048526,1.272,946.24,944.17,1.57668678]
[1768421049326,1.272,946.24,944.22,1.57668678]
[1768421050430,1.272,946.24,944.2,1.57668678]
[1768421051430,1.272,946.24,944.18,1.57668678]
[1768421052330,1.272,946.24,944.16,1.57668678]
[1768421053327,1.272,946.24,944.15,1.57668678]
[1768421054331,1.272,946.24,944.14,1.57668678]
[1768421055329,1.272,946.24,944.13,1.57668678]
[1768421055634,0.18406076,946.25,944.13,1.57668678]
[1768421056527,0.18406076,946.25,944.12,1.57668678]
[1768421057428,0.18406076,946.25,944.11,1.57668678]
[1768421058332,1.254,946.24,944.11,1.57668678]
[1768421060329,1.254,946.24,944.12,1.57668678]
[1768421062333,1.254,946.24,944.13,1.57668678]
[1768421063329,1.254,946.24,944.14,1.57668678]
[1768421064334,1.254,946.24,944.15,1.57668678]
[1768421068038,1.254,946.24,944.16,1.57668678]
[1768421068436,1.254,946.24,944.17,1.57668678]
[1768421068740,1.254,946.24,944.19,1.57668678]
[1768421069035,1.254,946.24,943.51,2.6278113]
[1768421069036,1.254,946.24,944.22,1.57668678]
[1768421069235,1.254,946.24,944.27,1.57668678]
[1768421071735,1.254,946.24,944.24,1.57668678]
[1768421072641,1.254,946.24,944.25,1.57668678]
[1768421075345,1.254,946.24,944.27,1.57668678]
[1768421076846,1.254,946.24,944.35,1.57668678]
[1768421077442,1.254,946.24,944.36,1.57668678]
[1768421078045,1.254,946.24,944.38,1.57668678]
[1768421078242,1.254,946.24,944.39,1.57668678]
[1768421079445,1.254,946.24,944.4,1.57668678]
[1768421080441,1.254,946.24,944.41,1.57668678]
[1768421081345,1.254,946.24,944.42,1.57668678]
[1768421082541,1.254,946.24,944.43,1.57668678]
[1768421083448,1.254,946.24,944.45,1.57668678]
[1768421084445,1.254,946.24,944.46,1.57668678]
[1768421084950,1.254,946.24,944.45,1.57668678]
[1768421085746,1.254,946.24,944.43,1.57668678]
[1768421085947,1.254,946.24,944.42,1.57668678]
[1768421086450,1.254,946.24,944.36,1.57668678]
[1768421087451,1.254,946.24,944.37,1.57668678]
[1768421088348,1.254,946.24,944.38,1.57668678]
[1768421089446,1.254,946.24,943.44,0.00971361]
[1768421089447,1.254,946.24,944.4,1.57668678]
[1768421090349,1.254,946.24,944.42,1.57668678]
[1768421091351,1.254,946.24,944.44,1.57668678]
[1768421092353,1.254,946.24,944.46,1.57668678]
[1768421093354,1.254,946.24,944.47,1.57668678]
[1768421096156,1.254,946.24,944.48,1.57668678]
[1768421097657,1.254,946.24,944.49,1.57668678]
[1768421099859,1.254,946.24,944.48,1.57668678]
[1768421100060,1.254,946.24,944.42,1.57668678]
[1768421102060,1.254,946.24,944.41,1.57668678]
[1768421102262,1.254,946.24,944.33,1.57668678]
[1768421102460,1.254,946.24,944.17,1.57668678]
[1768421102760,1.254,946.24,944.16,1.57668678]
[1768421102960,1.254,946.24,944.15,1.57668678]
[1768421103160,1.254,946.24,944.14,1.57668678]
[1768421103461,1.254,946.24,944.13,1.57668678]
[1768421104162,1.254,946.24,944.11,1.57668678]
[1768421104358,1.254,946.24,944.1,1.57668678]
[1768421104563,1.254,946.24,944.04,1.57668678]
[1768421105462,1.254,946.24,944.03,1.57668678]
[1768421106362,1.254,946.24,944.01,1.57668678]
[1768421107561,1.254,946.24,944.0,1.57668678]
[1768421108662,1.254,946.24,943.99,1.57668678]
[1768421109058,1.254,946.24,944.0,1.57668678]
[1768421109259,1.254,946.24,944.04,1.57668678]
[1768421110367,1.254,946.24,944.03,1.57668678]
[1768421111266,1.254,946.24,944.02,1.57668678]
[1768421112062,1.254,946.24,944.11,1.57668678]
[1768421113463,1.254,946.24,944.1,1.57668678]
[1768421114066,1.254,946.24,944.13,1.57668678]
[1768421114268,1.254,946.24,944.17,1.57668678]
[1768421115364,0.18406076,946.25,944.17,1.57668678]
[1768421118169,0.18406076,946.25,944.19,1.57668678]
[1768421119169,0.18406076,946.25,944.24,1.57668678]
[1768421119373,0.18406076,946.25,944.26,1.57668678]
[1768421119573,1.789,946.24,944.36,1.57668678]
[1768421120275,1.789,946.24,944.38,1.57668678]
[1768421120470,1.789,946.24,943.68,2.6278113]
[1768421120471,1.789,946.24,944.45,1.57668678]
[1768421120775,1.789,946.24,944.47,1.57668678]
[1768421120973,1.789,946.24,944.48,1.57668678]
[1768421122375,1.789,946.24,944.51,1.57668678]
[1768421122671,1.789,946.24,944.59,1.57668678]
[1768421123673,1.789,946.24,944.72,1.57668678]
[1768421124374,1.789,946.24,944.7,1.57668678]
[1768421125378,1.789,946.24,944.69,1.57668678]
[1768421126578,1.789,946.24,944.67,1.57668678]
[1768421127376,1.789,946.24,944.66,1.57668678]
[1768421128383,1.789,946.24,944.65,1.57668678]
[1768421129381,1.789,946.24,944.64,1.57668678]
[1768421130281,1.789,946.24,944.63,1.57668678]
[1768421130487,1.789,946.24,944.81,1.57668678]
[1768421130688,1.789,946.24,944.89,1.57668678]
[1768421130881,1.789,946.24,944.76,1.57668678]
[1768421131382,1.789,946.24,944.74,1.57668678]
[1768421132284,1.789,946.24,944.72,1.57668678]
[1768421133184,1.789,946.24,944.7,1.57668678]
[1768421133388,1.789,946.24,944.68,1.57668678]
[1768421134391,1.789,946.24,944.67,1.57668678]
[1768421135390,1.789,946.24,944.66,1.57668678]
[1768421136391,1.789,946.24,944.64,1.57668678]
[1768421136687,1.789,946.24,944.65,1.57668678]
[1768421137088,1.789,946.24,944.66,1.57668678]
[1768421137392,1.789,946.24,944.64,1.57668678]
[1768421137590,1.789,946.24,944.67,1.57668678]
[1768421138290,1.789,946.24,944.66,1.57668678]
[1768421138588,1.789,946.24,944.68,1.57668678]
[1768421138789,1.789,946.24,944.71,1.57668678]
[1768421139395,1.789,946.24,944.7,1.57668678]
[1768421140091,1.789,946.24,944.71,1.57668678]
[1768421140495,1.789,946.24,944.69,1.57668678]
[1768421140899,1.789,946.24,944.73,1.57668678]
[1768421141200,1.789,946.24,944.77,1.57668678]
[1768421141400,1.789,946.24,944.85,1.57668678]
[1768421141700,1.789,946.24,944.93,1.57668678]
[1768421142299,1.789,946.24,944.91,1.57668678]
[1768421143402,1.789,946.24,944.88,1.57668678]
[1768421144299,1.789,946.24,944.83,1.57668678]
[1768421144503,1.789,946.24,944.75,1.57668678]
[1768421144704,1.789,946.24,944.63,1.57668678]
[1768421145502,1.789,946.24,944.61,1.57668678]
[1768421146408,1.789,946.24,944.6,1.57668678]
[1768421146708,1.789,946.24,943.08,5.2556226]
[1768421146709,1.789,946.24,944.47,1.57668678]
[1768421147809,1.789,946.24,944.46,1.57668678]
[1768421148301,1.789,946.24,944.47,1.57668678]
[1768421149509,1.789,946.24,944.48,1.57668678]
[1768421150310,1.789,946.24,944.49,1.57668678]
[1768421151510,1.789,946.24,944.51,1.57668678]
[1768421151810,1.789,946.24,944.52,1.57668678]
[1768421152307,1.789,946.24,944.54,1.57668678]
[1768421153611,1.789,946.24,944.55,1.57668678]
[1768421154508,1.789,946.24,944.57,1.57668678]
[1768421155309,1.789,946.24,944.59,1.57668678]
[1768421156311,1.789,946.24,944.61,1.57668678]
[1768421157407,1.789,946.24,944.63,1.57668678]
[1768421158410,1.789,946.24,944.65,1.57668678]
[1768421159310,1.789,946.24,944.66,1.57668678]
[1768421160410,1.789,946.24,944.68,1.57668678]
[1768421161507,1.789,946.24,944.7,1.57668678]
[1768421162308,1.789,946.24,944.71,1.57668678]
[1768421162508,1.789,946.24,944.73,1.57668678]
[1768421162712,1.789,946.24,944.75,1.57668678]
[1768421163414,1.789,946.24,944.78,1.57668678]
[1768421164213,1.789,946.24,944.79,1.57668678]
[1768421164512,1.789,946.24,944.82,1.57668678]
[1768421164709,1.789,946.24,944.81,1.57668678]
[1768421164909,1.789,946.24,944.82,1.57668678]
[1768421165513,1.789,946.24,944.83,1.57668678]
[1768421165813,1.789,946.24,944.81,1.57668678]
[1768421166413,1.789,946.24,944.82,1.57668678]
[1768421167412,1.789,946.24,944.84,1.57668678]
[1768421168317,1.789,946.24,944.85,1.57668678]
[1768421168614,1.789,946.24,944.86,1.57668678]
[1768421170215,1.789,946.24,944.83,1.57668678]
[1768421170619,0.18393235,946.75,944.83,1.57668678]
[1768421170814,0.18393235,946.75,944.82,1.57668678]
[1768421171418,0.18393235,946.75,944.83,1.57668678]
[1768421172519,0.18393235,946.75,944.84,1.57668678]
[1768421173919,1.541,946.74,944.84,1.57668678]
[1768421174324,1.541,946.74,944.85,1.57668678]
[1768421175024,1.541,946.74,944.78,1.57668678]
[1768421175425,1.541,946.74,944.79,1.57668678]
[1768421175721,1.541,946.74,944.78,1.57668678]
[1768421176322,1.541,946.74,944.79,1.57668678]
[1768421178225,1.541,946.74,944.78,1.57668678]
[1768421178729,1.541,946.74,944.77,1.57668678]
[1768421178929,1.541,946.74,944.69,1.57668678]
[1768421180331,1.541,946.74,944.68,1.57668678]
[1768421181328,1.541,946.74,944.69,1.57668678]
[1768421182231,1.541,946.74,944.74,1.57668678]
[1768421182428,1.541,946.74,944.75,1.57668678]
[1768421182632,1.541,946.74,944.77,1.57668678]
[1768421183136,1.541,946.74,944.79,1.57668678]
[1768421183428,1.541,946.74,944.94,1.57668678]
[1768421184932,0.18393235,946.75,944.94,1.57668678]
[1768421186234,0.18393235,946.75,944.87,1.57668678]
[1768421186435,0.18393235,946.75,944.88,1.57668678]
[1768421186730,0.18393235,946.75,944.87,1.57668678]
[1768421187330,0.18393235,946.75,944.89,1.57668678]
[1768421188434,0.18393235,946.75,944.92,1.57668678]
[1768421189334,0.18393235,946.75,944.94,1.57668678]
[1768421189933,0.18393235,946.75,945.01,1.57668678]
[1768421190729,0.18393235,946.75,944.94,1.57668678]
[1768421191529,0.18393235,946.75,944.95,1.57668678]
[1768421191729,0.18393235,946.75,945.01,1.57668678]
[1768421193634,0.18393235,946.75,944.95,1.57668678]
[1768421196136,0.18393235,946.75,944.96,1.57668678]
[1768421196432,0.18393235,946.75,944.27,2.6278113]
[1768421196433,0.18393235,946.75,945.13,1.57668678]
[1768421196736,0.18393235,946.75,945.14,1.57668678]
[1768421197434,0.18393235,946.75,945.13,1.57668678]
[1768421197736,0.18393235,946.75,944.45,2.6278113]
[1768421197737,0.18393235,946.75,945.2,1.57668678]
[1768421197937,0.18393235,946.75,945.22,1.57668678]
[1768421198436,0.18393235,946.75,945.2,1.57668678]
[1768421199133,0.18393235,946.75,945.18,1.57668678]
[1768421199337,0.18393235,946.75,945.17,1.57668678]
[1768421201437,0.18393235,946.75,945.16,1.57668678]
[1768421202337,0.18393235,946.75,945.15,1.57668678]
[1768421202539,4.59405672,946.82,945.41,1.57668678]
[1768421202838,4.59405672,946.82,945.35,1.57668678]
[1768421203038,4.59405672,946.82,945.33,1.57668678]
[1768421203335,4.59405672,946.82,945.31,1.57668678]
[1768421204338,4.59405672,946.82,945.29,1.57668678]
[1768421205234,4.59405672,946.82,945.28,1.57668678]
[1768421206338,4.59405672,946.82,945.21,1.57668678]
[1768421206634,4.59405672,946.82,945.2,1.57668678]
[1768421207538,4.59405672,946.82,945.19,1.57668678]
[1768421208234,4.59405672,946.82,945.18,1.57668678]
[1768421209034,4.59405672,946.82,945.19,1.57668678]
[1768421209238,4.59405672,946.82,945.18,1.57668678]
[1768421210238,4.59405672,946.82,945.17,1.57668678]
[1768421212238,4.59405672,946.82,945.16,1.57668678]
[1768421212743,4.59405672,946.82,945.18,1.57668678]
[1768421213344,4.59405672,946.82,945.17,1.57668678]
[1768421216444,4.59405672,946.82,945.19,1.57668678]
[1768421216640,4.59405672,946.82,945.23,1.57668678]
[1768421217241,4.59405672,946.82,945.22,1.57668678]
[1768421219043,4.59405672,946.82,945.32,1.57668678]
[1768421219747,4.59405672,946.82,945.38,1.57668678]
[1768421221247,4.59405672,946.82,945.37,1.57668678]
[1768421221944,4.59405672,946.82,945.36,1.57668678]
[1768421222148,4.59405672,946.82,945.31,1.57668678]
[1768421222544,4.59405672,946.82,945.29,1.57668678]
[1768421223448,4.59405672,946.82,944.61,2.6278113]
[1768421223449,4.59405672,946.82,945.23,1.57668678]
[1768421223645,4.59405672,946.82,945.2,1.57668678]
[1768421224246,4.59405672,946.82,945.21,1.57668678]
[1768421225349,4.59405672,946.82,945.22,1.57668678]
[1768421225750,4.59405672,946.82,945.21,1.57668678]
[1768421225951,4.59405672,946.82,945.23,1.57668678]
[1768421226350,4.59405672,946.82,945.24,1.57668678]
[1768421226652,4.59405672,946.82,945.25,1.57668678]
[1768421226952,4.59405672,946.82,944.22,3.67893582]
[1768421226953,4.59405672,946.82,945.29,1.57668678]
[1768421227348,4.59405672,946.82,945.3,1.57668678]
[1768421228848,4.59405672,946.82,945.32,1.57668678]
[1768421230452,4.59405672,946.82,945.33,1.57668678]
[1768421230654,4.59405672,946.82,945.38,1.57668678]
[1768421231058,4.59405672,946.82,945.4,1.57668678]
[1768421232156,4.59405672,946.82,945.39,1.57668678]
[1768421232357,4.59405672,946.82,944.71,2.6278113]
[1768421232358,4.59405672,946.82,945.4,1.57668678]
[1768421233155,4.59405672,946.82,945.43,1.57668678]
[1768421233362,1.726,947.28,945.56,1.57668678]
[1768421233559,0.18383907,947.09,945.56,1.57668678]
[1768421234056,0.18383907,947.09,945.57,1.57668678]
[1768421234261,0.18383907,947.09,945.55,1.57668678]
[1768421234459,0.18383907,947.09,945.58,1.57668678]
[1768421235253,0.18383907,947.09,945.57,1.57668678]
[1768421235457,0.18383907,947.09,945.58,1.57668678]
[1768421236157,0.18383907,947.09,945.56,1.57668678]
[1768421236361,0.18383907,947.09,944.89,2.6278113]
[1768421236362,0.18383907,947.09,945.58,1.57668678]
[1768421236656,0.18383907,947.09,945.57,1.57668678]
[1768421237056,0.18383907,947.09,945.55,1.57668678]
[1768421238260,0.18383907,947.09,945.56,1.57668678]
[1768421239261,0.18383907,947.09,945.57,1.57668678]
[1768421240158,0.18383907,947.09,945.56,1.57668678]
[1768421240359,0.18383907,947.09,945.58,1.57668678]
[1768421240662,1.747,947.08,945.58,1.57668678]
[1768421241465,1.747,947.08,945.63,1.57668678]
[1768421241760,1.747,947.08,945.61,1.57668678]
[1768421242363,1.747,947.08,945.62,1.57668678]
[1768421243163,1.747,947.08,945.61,1.57668678]
[1768421243568,1.747,947.08,945.67,1.57668678]
[1768421244373,1.747,947.08,945.68,1.57668678]
[1768421245170,1.747,947.08,945.67,1.57668678]
[1768421245668,1.747,947.08,945.69,1.57668678]
[1768421245866,1.747,947.08,945.73,1.57668678]
[1768421246266,1.747,947.08,945.72,1.57668678]
[1768421247067,1.747,947.08,945.67,1.57668678]
[1768421249276,1.747,947.08,945.68,1.57668678]
[1768421249474,1.747,947.08,945.83,1.57668678]
[1768421249775,1.747,947.08,945.84,1.57668678]
[1768421250172,1.747,947.08,945.82,1.57668678]
[1768421251177,1.747,947.08,945.81,1.57668678]
[1768421252275,1.747,947.08,945.8,1.57668678]
[1768421253175,1.747,947.08,945.79,1.57668678]
[1768421253372,1.747,947.08,945.8,1.57668678]
[1768421254178,1.747,947.08,945.79,1.57668678]
[1768421254377,1.747,947.08,945.87,1.57668678]
[1768421255177,1.747,947.08,945.86,1.57668678]
[1768421255378,1.747,947.08,945.87,1.57668678]
[1768421256173,1.747,947.08,945.86,1.57668678]
[1768421257174,1.747,947.08,945.85,1.57668678]
[1768421257378,1.747,947.08,945.86,1.57668678]
[1768421258277,1.747,947.08,945.85,1.57668678]
[1768421259179,1.747,947.08,945.8,1.57668678]
[1768421259379,1.747,947.08,945.81,1.57668678]
[1768421260178,1.747,947.08,945.8,1.57668678]
[1768421260474,1.747,947.08,945.81,1.57668678]
[1768421261379,1.747,947.08,945.77,1.57668678]
[1768421263282,1.747,947.08,945.78,1.57668678]
[1768421264183,1.747,947.08,945.79,1.57668678]
[1768421266080,1.747,947.08,945.8,1.57668678]
[1768421267185,1.747,947.08,945.81,1.57668678]
[1768421267988,1.747,947.08,945.87,1.57668678]
[1768421268187,1.747,947.08,945.93,1.57668678]
[1768421268882,1.747,947.08,945.96,1.57668678]
[1768421270188,1.747,947.08,945.97,1.57668678]
[1768421270586,0.18376141,947.57,945.97,1.57668678]
[1768421271186,0.18376141,947.57,945.98,1.57668678]
[1768421273294,0.18376141,947.57,945.99,1.57668678]
[1768421274290,0.18376141,947.57,946.0,1.57668678]
[1768421274794,1.558,947.56,946.0,1.57668678]
[1768421275194,1.558,947.56,946.01,1.57668678]
[1768421276191,1.558,947.56,946.02,1.57668678]
[1768421277196,1.558,947.56,946.03,1.57668678]
[1768421278291,1.558,947.56,946.04,1.57668678]
[1768421280495,1.558,947.56,946.03,1.57668678]
[1768421282191,1.558,947.56,946.04,1.57668678]
[1768421283193,1.558,947.56,946.05,1.57668678]
[1768421283398,1.558,947.56,945.99,1.57668678]
[1768421283997,1.558,947.56,945.93,1.57668678]
[1768421284197,1.558,947.56,945.31,2.6278113]
[1768421284198,1.558,947.56,945.9,1.57668678]
[1768421284398,1.558,947.56,945.89,1.57668678]
[1768421284595,1.558,947.56,944.97,3.67893582]
[1768421284596,1.558,947.56,945.9,1.57668678]
[1768421284800,1.558,947.56,945.89,1.57668678]
[1768421284999,1.558,947.56,945.87,1.57668678]
[1768421285200,1.558,947.56,945.84,1.57668678]
[1768421286001,1.558,947.56,945.75,1.57668678]
[1768421286202,1.558,947.56,945.8,1.57668678]
[1768421286603,1.558,947.56,945.84,1.57668678]
[1768421287103,1.558,947.56,945.85,1.57668678]
[1768421288104,1.558,947.56,945.86,1.57668678]
[1768421288704,1.558,947.56,945.88,1.57668678]
[1768421289905,1.558,947.56,945.98,1.57668678]
[1768421290100,1.558,947.56,945.2,2.6278113]
[1768421290101,1.558,947.56,945.99,1.57668678]
[1768421290603,1.558,947.56,945.31,2.6278113]
[1768421290604,1.558,947.56,945.92,1.57668678]
[1768421291801,1.558,947.56,945.93,1.57668678]
[1768421292705,1.558,947.56,945.95,1.57668678]
[1768421293201,1.558,947.56,945.0,0.01172998]
[1768421293202,1.558,947.56,945.96,1.57668678]
[1768421293406,1.558,947.56,945.98,1.57668678]
[1768421294205,1.558,947.56,945.99,1.57668678]
[1768421295103,1.558,947.56,946.01,1.57668678]
[1768421300305,1.558,947.56,945.97,1.57668678]
[1768421302209,1.558,947.56,945.96,1.57668678]
[1768421302406,1.558,947.56,945.97,1.57668678]
[1768421302911,1.558,947.56,945.96,1.57668678]
[1768421303505,1.558,947.56,945.95,1.57668678]
[1768421304111,1.558,947.56,945.94,1.57668678]
[1768421304513,1.558,947.56,945.93,1.57668678]
[1768421304715,1.558,947.56,945.79,1.57668678]
[1768421305210,1.558,947.56,945.78,1.57668678]
[1768421305813,1.558,947.56,945.71,1.57668678]
[1768421306010,1.558,947.56,945.67,1.57668678]
[1768421306309,1.558,947.56,944.16,5.43939128]
[1768421306310,1.558,947.56,945.54,1.57668678]
[1768421307213,1.558,947.56,945.41,1.57668678]
[1768421308113,1.558,947.56,945.38,1.57668678]
[1768421309016,1.558,947.56,945.39,1.57668678]
[1768421309214,1.558,947.56,945.37,1.57668678]
[1768421309420,1.558,947.56,945.39,1.57668678]
[1768421309620,1.558,947.56,945.4,1.57668678]
[1768421309817,1.558,947.56,945.47,1.57668678]
[1768421310319,1.558,947.56,945.45,1.57668678]
[1768421311218,1.558,947.56,945.44,1.57668678]
[1768421312120,1.558,947.56,945.42,1.57668678]
[1768421313118,1.558,947.56,945.41,1.57668678]
[1768421315219,1.558,947.56,945.4,1.57668678]
[1768421316125,1.558,947.56,945.36,1.57668678]
[1768421316625,1.558,947.56,945.37,1.57668678]
[1768421318223,1.558,947.56,945.36,1.57668678]
[1768421320323,1.558,947.56,945.34,1.57668678]
[1768421320722,0.18376141,947.57,945.34,1.57668678]
[1768421323327,1.126,947.56,945.3,1.57668678]
[1768421327130,1.126,947.56,945.31,1.57668678]
[1768421327329,1.126,947.56,944.62,2.6278113]
[1768421327330,1.126,947.56,945.34,1.57668678]
[1768421328128,1.126,947.56,945.35,1.57668678]
[1768421329727,1.126,947.56,945.36,1.57668678]
[1768421330232,1.126,947.56,945.39,1.57668678]
[1768421330931,1.126,947.56,945.41,1.57668678]
[1768421333631,1.126,947.56,944.73,2.6278113]
[1768421333632,1.126,947.56,945.46,1.57668678]
[1768421333839,1.126,947.56,945.45,1.57668678]
[1768421334033,1.126,947.56,945.46,1.57668678]
[1768421335238,1.126,947.56,945.47,1.57668678]
[1768421337138,1.126,947.56,945.48,1.57668678]
[1768421338138,1.126,947.56,945.49,1.57668678]
[1768421340239,1.126,947.56,945.5,1.57668678]
[1768421340936,1.126,947.56,945.58,1.57668678]
[1768421341139,1.126,947.56,945.76,1.57668678]
[1768421341536,1.126,947.56,945.77,1.57668678]
[1768421341737,1.126,947.56,945.8,1.57668678]
[1768421342240,1.126,947.56,945.82,1.57668678]
[1768421342441,1.126,947.56,945.81,1.57668678]
[1768421343240,1.126,947.56,945.82,1.57668678]
[1768421343441,1.126,947.56,945.13,2.6278113]
[1768421343442,1.126,947.56,945.72,1.57668678]
[1768421344240,1.126,947.56,945.73,1.57668678]
[1768421345239,1.126,947.56,945.74,1.57668678]
[1768421346439,1.126,947.56,945.75,1.57668678]
[1768421347242,1.126,947.56,945.76,1.57668678]
[1768421347439,1.126,947.56,945.75,1.57668678]
[1768421348239,1.126,947.56,945.76,1.57668678]
[1768421349139,1.126,947.56,945.77,1.57668678]
[1768421349344,1.126,947.56,945.86,1.57668678]
[1768421350342,1.126,947.56,945.85,1.57668678]
[1768421351448,1.126,947.56,945.84,1.57668678]
[1768421353450,1.126,947.56,945.83,1.57668678]
[1768421355353,1.126,947.56,945.69,1.57668678]
[1768421358949,1.126,947.56,945.71,1.57668678]
[1768421359150,1.126,947.56,945.72,1.57668678]
[1768421360251,1.126,947.56,945.82,1.57668678]
[1768421360453,1.126,947.56,945.81,1.57668678]
[1768421361157,1.126,947.56,945.82,1.57668678]
[1768421361356,1.126,947.56,945.81,1.57668678]
[1768421361752,1.126,947.56,945.75,1.57668678]
[1768421362356,1.126,947.56,945.84,1.57668678]
[1768421363258,0.18376141,947.57,945.84,1.57668678]
[1768421367462,1.56,947.56,945.84,1.57668678]
[1768421369160,1.56,947.56,945.85,1.57668678]
[1768421371162,1.56,947.56,945.86,1.57668678]
[1768421371360,1.56,947.56,945.82,1.57668678]
[1768421373266,1.56,947.56,945.83,1.57668678]
[1768421373667,1.56,947.56,945.77,1.57668678]
[1768421374171,1.56,947.56,945.78,1.57668678]
[1768421375169,1.56,947.56,945.79,1.57668678]
[1768421376371,1.56,947.56,945.8,1.57668678]
[1768421377371,1.56,947.56,945.81,1.57668678]
[1768421377574,1.56,947.56,945.82,1.57668678]
[1768421378172,1.56,947.56,945.83,1.57668678]
[1768421378771,1.56,947.56,945.15,2.6278113]
[1768421378772,1.56,947.56,945.84,1.57668678]
[1768421379071,1.56,947.56,945.88,1.57668678]
[1768421379473,1.56,947.56,945.89,1.57668678]
[1768421381176,1.56,947.56,945.9,1.57668678]
[1768421382176,1.56,947.56,945.91,1.57668678]
[1768421382575,1.56,947.56,945.23,2.6278113]
[1768421382576,1.56,947.56,945.92,1.57668678]
[1768421382871,1.56,947.56,945.91,1.57668678]
[1768421383272,1.56,947.56,945.93,1.57668678]
[1768421384172,1.56,947.56,945.94,1.57668678]
[1768421385072,1.56,947.56,945.26,2.6278113]
[1768421385073,1.56,947.56,945.9,1.57668678]
[1768421385374,1.56,947.56,945.89,1.57668678]
[1768421386177,1.56,947.56,945.88,1.57668678]
[1768421386677,1.56,947.56,945.82,1.57668678]
[1768421387477,1.56,947.56,945.81,1.57668678]
[1768421388378,1.56,947.56,945.72,1.57668678]
[1768421388777,1.56,947.56,945.71,1.57668678]
[1768421390480,1.56,947.56,945.7,1.57668678]
[1768421391280,1.56,947.56,945.69,1.57668678]
[1768421393384,1.56,947.56,945.68,1.57668678]
[1768421396287,1.56,947.56,945.67,1.57668678]
[1768421397584,1.56,947.56,945.66,1.57668678]
[1768421398486,1.56,947.56,945.65,1.57668678]
[1768421401088,1.56,947.56,945.63,1.57668678]
[1768421401387,0.18376141,947.57,945.57,1.57668678]
[1768421401990,0.18376141,947.57,945.55,1.57668678]
[1768421402488,0.18376141,947.57,945.52,1.57668678]
[1768421403290,0.18376141,947.57,945.51,1.57668678]
[1768421403886,0.18376141,947.57,945.53,1.57668678]
[1768421404286,0.18376141,947.57,945.52,1.57668678]
[1768421405090,0.18376141,947.57,945.5,1.57668678]